bitfinex/quotes_BTCUSD_20251217
["timestamp","ask_amount","ask_price","bid_price","bid_amount"]
[1766000677287,1.001,85841.0,85826.0,0.4833]
[1766000677565,0.00161287,85842.0,85826.0,0.4833]
[1766000677566,1.0,85840.0,85826.0,0.4833]
[1766000677790,1.0,85841.0,85825.0,0.74562]
[1766000678022,0.001,85840.0,85828.0,0.4833]
[1766000678183,0.001,85840.0,85830.0,1.22892]
[1766000678349,0.001,85840.0,85823.0,0.00750069]
[1766000678350,0.0907,85838.0,85823.0,0.00750069]
[1766000678548,0.0907,85838.0,85811.0,0.4833]
[1766000678549,0.0907,85833.0,85811.0,0.4833]
[1766000678760,0.0907,85833.0,85811.0,0.77825549]
[1766000678957,1.0,85832.0,85812.0,0.4833]
[1766000679168,1.0,85832.0,85812.0,1.22892]
[1766000679365,0.10926,85833.0,85815.0,0.4833]
[1766000679589,0.20411,85844.0,85811.0,0.03263549]
[1766000679590,0.0907,85843.0,85820.0,0.74562]
[1766000679815,0.00185182,85847.0,85811.0,0.03263549]
[1766000679816,0.01247584,85842.0,85821.0,0.074562]
[1766000680020,0.03042297,85841.0,85812.0,0.05001839]
[1766000680191,0.01086297,85840.0,85813.0,0.74562]
[1766000680429,0.01086297,85840.0,85817.0,0.74562]
[1766000680659,0.01086297,85840.0,85822.0,0.48751]
[1766000681396,0.01086297,85839.0,85822.0,1.18422]
[1766000681630,0.01086297,85838.0,85822.0,1.18422]
[1766000681795,0.01086297,85837.0,85819.0,0.01856]
[1766000682010,0.01087912,85836.0,85819.0,0.01856]
[1766000682225,0.00161287,85842.0,85820.0,1.18422]
[1766000682486,0.00161287,85842.0,85821.0,0.11546078]
[1766000682692,0.001,85840.0,85823.0,0.48751]
[1766000682822,0.001,85840.0,85827.0,0.48751]
[1766000683162,0.001,85840.0,85827.0,1.18422]
[1766000683372,0.00161287,85842.0,85827.0,1.1840858]
[1766000683567,0.00161287,85842.0,85827.0,1.18386052]
[1766000683770,1.0,85841.0,85819.0,0.01956]
[1766000683973,0.01087923,85840.0,85819.0,0.090187]
[1766000684181,0.01087923,85840.0,85819.0,0.71527]
[1766000684392,0.00161287,85842.0,85820.0,1.06123476]
[1766000684393,0.01087923,85839.0,85820.0,1.06123476]
[1766000684677,0.00161287,85842.0,85819.0,0.01856]
[1766000684678,0.01087923,85838.0,85821.0,0.69671]
[1766000684824,0.20447,85841.0,85821.0,0.69671]
[1766000684825,0.01087923,85837.0,85821.0,0.69671]
[1766000685028,0.24633313,85841.0,85821.0,0.70904303]
[1766000685029,0.01087923,85836.0,85821.0,0.70904303]
[1766000685231,0.01087923,85836.0,85810.0,1.06123476]
[1766000685232,0.01087923,85835.0,85800.0,0.03159231]
[1766000685502,0.04186313,85839.0,85803.0,0.01856]
[1766000685503,0.20447,85831.0,85803.0,0.01856]
[1766000685651,1.0,85828.0,85804.0,0.63741]
[1766000685855,1.0,85826.0,85805.0,0.48751]
[1766000686053,1.0,85826.0,85803.0,0.01856]
[1766000686054,0.20447,85823.0,85803.0,0.01856]
[1766000686295,1.0,85820.0,85800.0,0.00026459]
[1766000686453,1.0,85818.0,85796.0,0.48737459]
[1766000686659,0.28657415,85816.0,85775.0,0.03132772]
[1766000686997,0.28657415,85816.0,85770.0,1.10312545]
[1766000686998,0.2046,85811.0,85777.0,0.05001839]
[1766000687203,0.01087923,85815.0,85776.0,0.13200532]
[1766000687204,0.2046,85809.0,85776.0,0.1289192]
[1766000687382,0.2046,85807.0,85777.0,0.69671]
[1766000687583,0.21547923,85806.0,85778.0,0.05001839]
[1766000687763,0.21547923,85806.0,85776.0,0.01856]
[1766000687764,0.01087923,85805.0,85776.0,0.01856]
[1766000688371,0.01087923,85804.0,85777.0,0.48751]
[1766000688569,0.01087923,85803.0,85779.0,0.48751]
[1766000688749,0.01087923,85802.0,85779.0,0.48751]
[1766000688956,0.01087923,85801.0,85779.0,0.48751]
[1766000689152,0.01087923,85800.0,85779.0,0.48751]
[1766000689381,0.01087923,85799.0,85779.0,0.48751]
[1766000689583,0.01087923,85798.0,85784.0,0.69671]
[1766000689823,0.01087923,85797.0,85786.0,0.69671]
[1766000690134,0.01087923,85796.0,85786.0,0.69671]
[1766000690334,0.01087923,85796.0,85780.0,0.0556677]
[1766000690335,0.20769,85804.0,85780.0,0.0556677]
[1766000690537,0.01090169,85803.0,85779.0,0.69671]
[1766000690696,0.01090169,85803.0,85779.0,0.69360019]
[1766000690901,0.01090169,85802.0,85786.0,0.002]
[1766000691100,0.01090169,85801.0,85786.0,0.002]
[1766000691325,0.01090169,85800.0,85786.0,0.002]
[1766000691483,0.01090169,85799.0,85786.0,0.002]
[1766000691816,0.01090169,85798.0,85786.0,0.002]
[1766000692017,0.01090169,85797.0,85785.0,0.48751]
[1766000692222,0.00161287,85799.0,85786.0,0.048751]
[1766000692540,0.00161287,85799.0,85779.0,0.69360019]
[1766000692541,0.00161287,85799.0,85779.0,1.17902561]
[1766000692920,0.01251051,85799.0,85779.0,1.17595967]
[1766000693162,0.01251051,85799.0,85779.0,1.17395967]
[1766000693631,0.01251051,85799.0,85786.0,0.002]
[1766000693833,0.01251051,85799.0,85779.0,1.17195967]
[1766000694359,0.01251051,85799.0,85779.0,0.79991045]
[1766000694560,0.01251051,85799.0,85781.0,0.48751]
[1766000694785,0.00161287,85799.0,85793.0,0.48751]
[1766000694987,0.00161287,85799.0,85793.0,0.48443456]
[1766000695188,0.00161287,85799.0,85792.0,0.00025777]
[1766000695360,0.00361287,85799.0,85776.0,0.01856]
[1766000695579,0.00161287,85799.0,85776.0,0.01544962]
[1766000695748,0.00161287,85799.0,85777.0,0.69671]
[1766000695950,0.00161287,85799.0,85793.0,0.001]
[1766000696185,0.00161287,85799.0,85777.0,0.69571]
[1766000696521,0.00261287,85799.0,85778.0,0.07111596]
[1766000696701,0.00261287,85799.0,85776.0,0.01544962]
[1766000696911,0.00161287,85799.0,85777.0,0.48751]
[1766000697240,0.00261287,85799.0,85777.0,0.48751]
[1766000697816,0.00261287,85799.0,85777.0,0.48440973]
[1766000697972,0.00261287,85799.0,85778.0,0.04691789]
[1766000698164,0.00261287,85799.0,85776.0,0.70913965]
[1766000698165,0.00161287,85799.0,85776.0,0.70913965]
[1766000698368,0.07587671,85802.0,85777.0,0.48751]
[1766000698564,0.001,85799.0,85779.0,1.18422]
[1766000698787,0.01856,85805.0,85781.0,0.69671]
[1766000699116,0.01856,85804.0,85786.0,0.48751]
[1766000699317,0.01856,85804.0,85787.0,0.53642229]
[1766000699318,0.001,85799.0,85787.0,0.53642229]
[1766000699615,0.01856,85804.0,85781.0,0.00161287]
[1766000699916,0.001,85799.0,85781.0,0.00161287]
[1766000700116,0.01856,85804.0,85776.0,0.01094922]
[1766000700318,0.01856,85804.0,85777.0,1.18422]
[1766000700550,0.01856,85804.0,85776.0,0.01094922]
[1766000700731,0.07587,85803.0,85776.0,0.00475899]
[1766000701383,0.01856,85804.0,85753.0,0.01166139]
[1766000701384,0.07587,85799.0,85753.0,0.01166139]
[1766000701587,0.07587,85799.0,85749.0,0.01166194]
[1766000701588,0.19678,85795.0,85770.0,0.69671]
[1766000701796,0.07587,85787.0,85755.0,0.48751]
[1766000702023,0.07587,85787.0,85756.0,0.69671]
[1766000702024,0.07587,85782.0,85756.0,0.69671]
[1766000702228,0.07587,85782.0,85754.0,0.01856]
[1766000702229,0.00161287,85787.0,85757.0,0.071527]
[1766000702430,0.02017287,85782.0,85764.0,0.69671]
[1766000702648,0.02017287,85782.0,85754.0,0.01856]
[1766000702649,0.00161287,85782.0,85757.0,0.24487782]
[1766000702841,0.00161287,85782.0,85760.0,0.69671]
[1766000703070,0.0907,85790.0,85766.0,0.69671]
[1766000703071,0.002,85787.0,85766.0,0.69671]
[1766000703279,0.002,85787.0,85761.0,0.08366337]
[1766000703280,0.0623849,85816.0,85761.0,0.08366337]
[1766000703281,0.01164863,85847.0,85794.0,0.05001839]
[1766000703476,0.16167815,85865.0,85811.0,0.78741]
[1766000703477,0.00161287,85843.0,85811.0,0.78741]
[1766000703682,0.00161287,85843.0,85813.0,0.69671]
[1766000703892,0.00161287,85843.0,85820.0,0.72339001]
[1766000704063,0.00161287,85843.0,85831.0,0.69671]
[1766000704291,0.00161287,85843.0,85832.0,0.069671]
[1766000704423,0.00161287,85843.0,85810.0,0.72339001]
[1766000704424,0.00161287,85843.0,85825.0,0.01856]
[1766000704425,0.0907,85841.0,85825.0,0.01856]
[1766000704762,0.34257,85837.0,85816.0,0.69181]
[1766000705056,0.54581287,85837.0,85816.0,0.69181]
[1766000705503,0.00161287,85837.0,85823.0,0.48751]
[1766000705648,0.00161287,85837.0,85810.0,0.01165365]
[1766000705649,0.00161287,85837.0,85810.0,1.2609184]
[1766000705852,0.00161287,85837.0,85810.0,1.37637918]
[1766000706060,0.54581287,85837.0,85810.0,0.65298917]
[1766000706442,0.34257,85836.0,85811.0,0.01856]
[1766000706641,0.34257,85831.0,85803.0,0.01856]
[1766000706984,0.34257,85825.0,85803.0,0.01856]
[1766000707126,0.20163,85824.0,85803.0,0.01856]
[1766000707342,0.0907,85833.0,85803.0,0.01856]
[1766000707549,0.20163,85824.0,85794.0,1.18422]
[1766000707755,0.5442,85820.0,85791.0,0.01856]
[1766000707973,0.56276,85820.0,85791.0,0.01856]
[1766000708197,0.56276,85820.0,85793.0,1.18422]
[1766000708393,0.56276,85820.0,85792.0,0.11546078]
[1766000708866,0.0907,85827.0,85800.0,0.72339001]
[1766000708994,0.02943694,85826.0,85806.0,1.18422]
[1766000709212,0.002,85820.0,85806.0,1.18422]
[1766000709395,0.01087694,85825.0,85805.0,0.01165433]
[1766000709596,0.02901593,85849.0,85816.0,0.51064]
[1766000709597,0.20163,85846.0,85816.0,0.51064]
[1766000709799,0.73503687,85860.0,85816.0,0.51064]
[1766000709800,0.01856,85842.0,85820.0,0.72339001]
[1766000710019,0.01087655,85841.0,85821.0,0.01398259]
[1766000710195,0.01087655,85841.0,85826.0,0.74362]
[1766000710430,0.01856,85849.0,85830.0,1.25426]
[1766000710583,0.01087534,85848.0,85830.0,1.25426]
[1766000711874,0.00111293,85843.0,85830.0,1.25426]
[1766000713725,0.00111293,85843.0,85826.0,0.00161287]
[1766000713927,0.00111293,85843.0,85822.0,0.50268]
[1766000713928,0.34815,85840.0,85814.0,0.52124]
[1766000714228,0.54979,85839.0,85814.0,0.52285287]
[1766000714446,0.54979,85834.0,85814.0,0.00161287]
[1766000714644,0.01856,85836.0,85814.0,0.00161287]
[1766000714881,0.20164,85837.0,85814.0,0.00161287]
[1766000715026,0.01856,85842.0,85820.0,0.72339001]
[1766000715221,0.01087369,85841.0,85820.0,0.00161287]
[1766000715682,0.01856,85842.0,85822.0,0.50268]
[1766000716081,0.00011293,85843.0,85825.0,0.69726]
[1766000716260,0.20164,85857.0,85817.0,0.01856]
[1766000716261,0.02943164,85856.0,85842.0,0.00161287]
[1766000716463,0.01087164,85855.0,85842.0,0.00161287]
[1766000716738,0.01856,85856.0,85842.0,0.00161287]
[1766000717471,0.0907,85862.0,85842.0,0.00161287]
[1766000717705,0.01164496,85874.0,85842.0,0.00161287]
[1766000717706,0.001,85855.0,85850.0,0.72339001]
[1766000717919,0.34826,85879.0,85850.0,0.72339001]
[1766000717920,0.01856,85870.0,85851.0,1.11294]
[1766000718146,0.01856,85870.0,85851.0,1.11455287]
[1766000718360,0.01856,85870.0,85842.0,0.11546078]
[1766000718361,0.001,85856.0,85842.0,0.11546078]
[1766000718582,0.001,85856.0,85821.0,0.01165215]
[1766000718583,0.001,85856.0,85830.0,0.69726]
[1766000718799,0.001,85856.0,85830.0,0.69924955]
[1766000719018,0.65646,85858.0,85830.0,0.69924955]
[1766000719944,0.65646,85858.0,85831.0,0.50268]
[1766000720155,0.65646,85858.0,85833.0,0.50268]
[1766000720364,0.65646,85858.0,85835.0,1.19994]
[1766000720995,0.65646,85858.0,85835.0,1.20155287]
[1766000721220,0.20164,85858.0,85835.0,0.00161287]
[1766000721448,0.0004,85865.0,85836.0,0.01398014]
[1766000721668,0.0907,85866.0,85836.0,0.01398014]
[1766000721669,0.01856,85866.0,85840.0,0.50268]
[1766000721894,0.01856,85866.0,85845.0,0.69726]
[1766000722142,0.01856,85866.0,85847.0,1.19994]
[1766000722358,0.01856,85872.0,85847.0,1.19994]
[1766000722584,0.00025748,85854.0,85848.0,1.30922433]
[1766000722810,0.01085007,85871.0,85848.0,0.1108972]
[1766000723041,0.01856,85873.0,85851.0,0.69726]
[1766000723243,0.21248993,85872.0,85849.0,0.69726]
[1766000723473,0.21248993,85872.0,85848.0,0.00161287]
[1766000723474,0.20164,85869.0,85848.0,0.00161287]
[1766000723676,0.01084993,85868.0,85848.0,0.00161287]
[1766000723788,0.20164,85866.0,85848.0,0.00161287]
[1766000723988,0.002,85866.0,85848.0,0.00161287]
[1766000724437,0.0004,85887.0,85853.0,0.50268]
[1766000724665,0.0004,85887.0,85863.0,0.01164646]
[1766000724882,0.0004,85887.0,85865.0,0.01164618]
[1766000725092,0.0004,85887.0,85866.0,0.06166444]
[1766000725291,0.0004,85887.0,85867.0,0.03380583]
[1766000725497,0.0004,85887.0,85869.0,0.69726]
[1766000725709,0.0004,85887.0,85872.0,0.50268]
[1766000726025,0.00051289,85887.0,85872.0,0.52124]
[1766000726251,0.00051289,85887.0,85872.0,0.00856]
[1766000726429,0.0004,85892.0,85874.0,0.69726]
[1766000726635,0.23278966,85915.0,85874.0,0.69726]
[1766000726636,0.48287,85919.0,85875.0,0.69726]
[1766000726843,0.72359001,85920.0,85886.0,0.05001839]
[1766000726844,0.0002,85920.0,85886.0,0.05001839]
[1766000727268,0.0002,85920.0,85891.0,0.69726]
[1766000727432,0.0002,85920.0,85893.0,0.69726]
[1766000727679,0.0002,85920.0,85893.0,0.69887287]
[1766000728033,0.0012,85920.0,85893.0,0.69887287]
[1766000728242,0.0012,85920.0,85898.0,0.05001839]
[1766000728440,0.0012,85920.0,85906.0,0.50268]
[1766000728441,0.0002,85920.0,85906.0,0.50268]
[1766000728640,0.0002,85920.0,85908.0,1.19994]
[1766000728641,0.0012,85920.0,85908.0,1.19994]
[1766000729048,0.0002,85920.0,85908.0,0.00161287]
[1766000729274,0.0002,85920.0,85899.0,0.01856]
[1766000729483,0.0002,85920.0,85899.0,0.02017287]
[1766000729691,0.00057607,85920.0,85899.0,0.02017287]
[1766000729930,0.0004,85930.0,85902.0,1.19994]
[1766000730137,0.00051278,85926.0,85904.0,0.69726]
[1766000730347,2.78e-06,85926.0,85910.0,0.69726]
[1766000730551,2.78e-06,85926.0,85914.0,0.69726]
[1766000730772,2.78e-06,85926.0,85916.0,1.18094]
[1766000731013,2.78e-06,85926.0,85917.0,0.50268]
[1766000731270,2.78e-06,85926.0,85918.0,0.05042929]
[1766000731471,2.78e-06,85926.0,85917.0,0.50429287]
[1766000731683,2.78e-06,85926.0,85910.0,0.001]
[1766000731684,2.78e-06,85926.0,85912.0,0.01856]
[1766000731900,2.78e-06,85926.0,85898.0,0.04991839]
[1766000731901,0.48445,85925.0,85898.0,0.04991839]
[1766000732120,0.48445,85925.0,85892.0,0.50168]
[1766000732121,0.48545,85924.0,85892.0,0.50168]
[1766000732339,0.48545,85921.0,85895.0,0.01852]
[1766000732587,0.7064,85921.0,85895.0,0.02013287]
[1766000732826,0.7064,85921.0,85896.0,0.69726]
[1766000733062,0.7064,85921.0,85896.0,0.69887287]
[1766000733262,0.22095,85921.0,85896.0,0.69887287]
[1766000733502,2.78e-06,85926.0,85898.0,0.69726]
[1766000733707,2.78e-06,85926.0,85900.0,0.69726]
[1766000733919,2.78e-06,85926.0,85901.0,0.0116413]
[1766000734095,0.0004,85929.0,85901.0,0.0116413]
[1766000734096,2.113e-05,85929.0,85906.0,0.50268]
[1766000734323,2.113e-05,85929.0,85910.0,0.50268]
[1766000734536,2.113e-05,85929.0,85917.0,0.69726]
[1766000734710,2.113e-05,85929.0,85917.0,1.19994]
[1766000735171,6.009e-05,85930.0,85917.0,1.20155287]
[1766000735956,0.0907,85929.0,85917.0,0.00161287]
[1766000736125,0.09034522,85929.0,85917.0,0.00161287]
[1766000736333,0.00205825,85918.0,85901.0,0.71555607]
[1766000736530,0.00037577,85918.0,85901.0,0.71716894]
[1766000736999,0.00037577,85918.0,85902.0,0.50268]
[1766000737180,1.701e-05,85918.0,85902.0,0.50429287]
[1766000737385,1.701e-05,85918.0,85904.0,0.50268]
[1766000737549,1.701e-05,85918.0,85904.0,0.50429287]
[1766000738896,0.72505338,85933.0,85909.0,1.19994]
[1766000739245,0.72470168,85933.0,85910.0,1.19994]
[1766000739451,0.72470168,85933.0,85911.0,0.69726]
[1766000739583,0.72470168,85933.0,85911.0,1.20155287]
[1766000739788,0.72470168,85933.0,85912.0,0.11546078]
[1766000740017,0.72470168,85933.0,85912.0,0.11707365]
[1766000740213,0.04093722,85949.0,85917.0,0.50268]
[1766000740214,0.12000242,85949.0,85917.0,0.50268]
[1766000740415,0.001,85933.0,85918.0,1.19994]
[1766000740618,0.01852,85941.0,85919.0,1.31540078]
[1766000740936,0.0907,85946.0,85919.0,1.31540078]
[1766000740937,0.001,85933.0,85919.0,0.11707365]
[1766000741143,0.09034006,85946.0,85922.0,0.48691]
[1766000741321,0.48645,85952.0,85925.0,0.67855]
[1766000741520,0.4980848,85949.0,85923.0,0.01852]
[1766000741746,0.48645,85939.0,85922.0,0.00161287]
[1766000742283,0.00186995,85923.0,85908.0,0.01852]
[1766000742482,0.00186995,85923.0,85908.0,0.02013287]
[1766000742617,1.43031001,85932.0,85908.0,0.02013287]
[1766000742820,0.01852,85937.0,85912.0,0.48691]
[1766000743045,0.01852,85937.0,85914.0,0.67355]
[1766000743374,0.01852,85937.0,85904.0,0.00037577]
[1766000743375,0.48645,85920.0,85904.0,0.00037577]
[1766000743540,0.31612,85917.0,85889.0,0.48668577]
[1766000743723,0.0907,85915.0,85890.0,0.05052058]
[1766000743923,0.3931325,85916.0,85890.0,0.05213345]
[1766000744328,0.00037577,85917.0,85890.0,0.53904345]
[1766000744851,0.00037577,85917.0,85892.0,0.05001839]
[1766000745083,0.01852,85936.0,85899.0,0.48691]
[1766000745243,0.01045054,85935.0,85905.0,0.48691]
[1766000745460,0.01045054,85935.0,85911.0,0.48691]
[1766000745661,0.01852,85936.0,85911.0,0.00161287]
[1766000745884,0.22542,85929.0,85911.0,0.00161287]
[1766000746505,0.22507033,85929.0,85911.0,0.00161287]
[1766000747390,0.24435956,85939.0,85911.0,0.00161287]
[1766000747391,0.10233453,85951.0,85911.0,0.00161287]
[1766000747618,0.01852,85944.0,85916.0,0.48691]
[1766000747829,0.01852,85944.0,85920.0,1.16546]
[1766000748038,0.01852,85944.0,85921.0,1.16546]
[1766000748211,0.01852,85944.0,85921.0,1.16707287]
[1766000748545,0.01816493,85944.0,85921.0,1.16707287]
[1766000748687,0.0907,85949.0,85922.0,0.01396615]
[1766000748890,0.01852,85948.0,85923.0,0.00658281]
[1766000749150,0.0907,85949.0,85923.0,0.00819568]
[1766000749320,0.01852,85948.0,85925.0,0.48691]
[1766000749527,0.01813866,85948.0,85927.0,1.16546]
[1766000749721,0.01813866,85948.0,85927.0,1.16707287]
[1766000750528,0.01776456,85948.0,85927.0,1.16707287]
[1766000751610,0.01738579,85948.0,85927.0,1.16707287]
[1766000751816,0.01738579,85948.0,85928.0,0.11546078]
[1766000751994,0.01738579,85948.0,85928.0,0.11707365]
[1766000752716,0.01702212,85948.0,85928.0,0.11707365]
[1766000752922,0.01702212,85948.0,85928.0,0.09207365]
[1766000753122,0.0907,85943.0,85917.0,1.16387287]
[1766000753349,0.0907,85943.0,85918.0,0.67855]
[1766000753556,0.00206274,85929.0,85917.0,0.00011278]
[1766000753757,0.63797,85936.0,85910.0,0.01843278]
[1766000754013,0.00170927,85918.0,85910.0,0.69698278]
[1766000754218,0.63808271,85936.0,85911.0,0.06969828]
[1766000754570,0.63808271,85936.0,85911.0,0.67855]
[1766000754774,0.22484271,85936.0,85913.0,1.16546]
[1766000754991,0.22484271,85936.0,85919.0,0.67855]
[1766000754992,0.00011271,85936.0,85919.0,0.67855]
[1766000755193,0.00011271,85936.0,85910.0,0.74020653]
[1766000755194,0.00011271,85936.0,85923.0,1.16546]
[1766000755368,0.00011271,85936.0,85919.0,0.67855]
[1766000755573,0.00011271,85936.0,85924.0,0.48691]
[1766000755773,0.00011271,85936.0,85925.0,0.67855]
[1766000756079,0.00196635,85926.0,85925.0,1.16546]
[1766000756968,0.00011271,85936.0,85925.0,0.002]
[1766000757188,0.00011271,85936.0,85925.0,1.16746]
[1766000758229,0.00011271,85936.0,85925.0,1.28092078]
[1766000758367,0.00172558,85936.0,85925.0,1.28392078]
[1766000758586,1.0,85935.0,85925.0,1.16846]
[1766000758797,0.01090692,85934.0,85925.0,1.16546]
[1766000759143,0.01090692,85933.0,85925.0,1.16746]
[1766000759348,0.01090692,85932.0,85925.0,1.16546]
[1766000759573,0.01090692,85931.0,85925.0,1.16546]
[1766000759756,0.01090692,85930.0,85926.0,1.16546]
[1766000759958,0.00172558,85936.0,85926.0,0.45691]
[1766000759959,0.01090692,85929.0,85926.0,0.45691]
[1766000760189,0.01090692,85928.0,85926.0,0.40991]
[1766000760397,0.01090692,85927.0,85926.0,0.37991]
[1766000760612,0.00172558,85936.0,85926.0,0.37991]
[1766000760613,0.00172558,85936.0,85926.0,0.37491]
[1766000760829,1.0,85935.0,85926.0,0.37491]
[1766000761032,0.01090692,85934.0,85926.0,0.37491]
[1766000761479,0.01090692,85933.0,85926.0,0.37491]
[1766000761696,0.01090692,85932.0,85926.0,0.37491]
[1766000761889,0.01090692,85931.0,85927.0,0.67855]
[1766000762126,0.01090692,85930.0,85927.0,0.67855]
[1766000762353,0.01090692,85929.0,85927.0,0.67855]
[1766000762560,0.00172558,85936.0,85928.0,1.16546]
[1766000762704,1.0,85935.0,85928.0,1.16546]
[1766000762902,0.0109097,85934.0,85928.0,1.16546]
[1766000763119,0.00172558,85936.0,85921.0,0.01852]
[1766000763120,0.0109097,85933.0,85927.0,1.16746]
[1766000763319,0.0109097,85932.0,85927.0,0.002]
[1766000763540,0.0109097,85931.0,85930.0,0.48691]
[1766000763717,0.0109097,85931.0,85928.0,0.67855]
[1766000763919,0.0109097,85930.0,85928.0,0.67855]
[1766000764106,0.00025713,85934.0,85928.0,0.67855]
[1766000764314,0.0907,85950.0,85928.0,0.67855]
[1766000764521,0.0907,85945.0,85928.0,0.67855]
[1766000764725,0.0907,85943.0,85928.0,0.001]
[1766000764947,1.0,85940.0,85929.0,0.67855]
[1766000765153,1.0,85940.0,85929.0,0.67866271]
[1766000765776,1.0,85940.0,85930.0,1.16546]
[1766000766467,1.0,85940.0,85929.0,0.00011271]
[1766000766824,1.0,85940.0,85930.0,1.16546]
[1766000767028,0.0907,85948.0,85930.0,0.67855]
[1766000767235,0.0907,85948.0,85929.0,0.00011271]
[1766000767236,0.00161287,85950.0,85933.0,0.48691]
[1766000767439,0.062366,85970.0,85934.0,0.0324842]
[1766000767440,1.0,85970.0,85934.0,0.0324842]
[1766000767677,0.0002,85977.0,85945.0,0.67855]
[1766000767887,1.0,85976.0,85951.0,0.67855]
[1766000768093,1.0,85974.0,85957.0,0.67855]
[1766000768294,1.0,85974.0,85958.0,0.01852]
[1766000768501,1.0,85973.0,85958.0,0.01852]
[1766000768702,0.00161287,85973.0,85958.0,0.01852]
[1766000768925,1.0,85972.0,85958.0,0.01852]
[1766000769072,1.0,85972.0,85962.0,0.48691]
[1766000769270,1.0,85972.0,85958.0,0.01952]
[1766000769271,0.00161563,85972.0,85958.0,0.01952]
[1766000769663,1.0,85971.0,85958.0,0.001]
[1766000769882,1.0,85971.0,85960.0,0.68799]
[1766000770222,0.00161563,85972.0,85960.0,0.68799]
[1766000771217,0.00161563,85972.0,85961.0,0.01852]
[1766000771423,0.00161563,85972.0,85961.0,0.71129]
[1766000772032,0.0118302,85983.0,85972.0,0.51823]
[1766000772033,0.0002,85983.0,85972.0,0.51823]
[1766000772260,0.0002,86012.0,85960.0,0.002]
[1766000772261,0.01162655,86010.0,85986.0,0.51823]
[1766000772412,1.0,85995.0,85986.0,0.00172563]
[1766000772622,0.47768,86000.0,85988.0,0.69277]
[1766000772623,0.0002,86000.0,85988.0,0.69277]
[1766000772844,0.0002,86000.0,85988.0,0.69438287]
[1766000773057,0.0002,86000.0,85989.0,0.01852]
[1766000773294,0.0002,86000.0,85988.0,0.00161287]
[1766000773619,0.0002,86000.0,85989.0,0.69277]
[1766000773995,0.00179862,85990.0,85989.0,0.69277]
[1766000774369,0.0002,86000.0,85989.0,0.69277]
[1766000774370,0.0002,86000.0,85990.0,0.51823]
[1766000774573,0.23038,86015.0,85993.0,0.69277]
[1766000774778,0.0907,86008.0,85993.0,0.69438287]
[1766000774981,0.0907,86006.0,85994.0,0.69277]
[1766000775173,0.0907,86004.0,85994.0,0.69438287]
[1766000775349,1.0,86011.0,85996.0,0.69277]
[1766000775552,1.0,86009.0,85996.0,0.69265192]
[1766000775752,1.0,86007.0,85996.0,0.51984287]
[1766000775961,0.0907,86008.0,85989.0,0.00041287]
[1766000775962,1.0907,86004.0,85989.0,0.00041287]
[1766000776118,0.47748,85997.0,85985.0,0.01852]
[1766000776317,1.0,85994.0,85985.0,0.01852]
[1766000776566,0.0907,86006.0,85986.0,0.51834276]
[1766000776721,0.0907,86002.0,85986.0,0.51834276]
[1766000776923,1.0,86001.0,85986.0,0.51834276]
[1766000777124,1.0,86001.0,85994.0,0.001]
[1766000777566,1.0,86001.0,85988.0,0.51823]
[1766000777748,0.0907,86010.0,85986.0,0.05479904]
[1766000777943,1.0,86007.0,85988.0,0.51823]
[1766000778146,0.0907,86010.0,85993.0,0.69277]
[1766000778348,1.0,86007.0,85994.0,0.51923]
[1766000778567,1.0,86007.0,85995.0,0.69277]
[1766000778993,1.0,86007.0,85997.0,0.69277]
[1766000780133,0.47748,86004.0,85994.0,0.01852]
[1766000780488,1.0,86002.0,85991.0,0.01852]
[1766000780692,1.0,86001.0,85991.0,0.01852]
[1766000780850,0.00161287,85992.0,85972.0,0.51823]
[1766000781054,0.47748,85987.0,85962.0,0.69277]
[1766000781254,1.0,85984.0,85966.0,0.01852]
[1766000781601,1.0,85983.0,85966.0,0.01852]
[1766000781820,1.0,85982.0,85966.0,0.01852]
[1766000781980,1.0,85981.0,85966.0,0.71129]
[1766000782184,0.00161287,85981.0,85966.0,0.71129]
[1766000783109,1.0,85980.0,85949.0,0.51823]
[1766000783285,0.00161287,85980.0,85960.0,0.69277]
[1766000784102,0.47909287,85980.0,85960.0,0.69277]
[1766000784335,0.47909287,85980.0,85960.0,0.70472518]
[1766000784550,0.47748,85977.0,85951.0,0.69277]
[1766000784779,0.23229,85978.0,85952.0,0.01852]
[1766000784780,0.47748,85969.0,85952.0,0.01852]
[1766000785249,0.47748,85965.0,85952.0,0.01852]
[1766000785490,0.47748,85964.0,85944.0,0.0204872]
[1766000785729,0.47748,85962.0,85944.0,0.0204872]
[1766000785981,0.23229,85963.0,85944.0,0.0204872]
[1766000785982,0.47748,85961.0,85944.0,0.0204872]
[1766000786223,1.0,85956.0,85944.0,0.0019672]
[1766000786483,0.47748,85955.0,85944.0,0.0019672]
[1766000786691,0.47759265,85955.0,85944.0,0.0019672]
[1766000787145,0.00011265,85955.0,85944.0,0.0019672]
[1766000787595,0.00011265,85955.0,85952.0,0.001]
[1766000787833,0.00011265,85955.0,85944.0,0.0019672]
[1766000788085,0.00011265,85955.0,85944.0,0.0039672]
[1766000788542,0.00011265,85955.0,85944.0,0.0019672]
[1766000788744,0.00011265,85955.0,85952.0,0.002]
[1766000788980,0.00011265,85955.0,85953.0,0.69277]
[1766000788981,2.65e-06,85955.0,85953.0,0.69277]
[1766000789429,2.65e-06,85955.0,85954.0,1.211]
[1766000790296,2.65e-06,85955.0,85954.0,1.22952]
[1766000790965,2.65e-06,85955.0,85954.0,1.23252]
[1766000791193,2.65e-06,85955.0,85954.0,0.71129]
[1766000791413,2.65e-06,85955.0,85946.0,0.51823]
[1766000791414,2.65e-06,85955.0,85944.0,0.0019672]
[1766000793175,2.65e-06,85955.0,85954.0,0.001]
[1766000793399,2.65e-06,85955.0,85944.0,0.0019672]
[1766000793602,2.65e-06,85955.0,85944.0,0.0029672]
[1766000794006,2.65e-06,85955.0,85944.0,0.07339292]
[1766000794211,2.65e-06,85955.0,85944.0,0.07439292]
[1766000794453,2.65e-06,85955.0,85945.0,0.69277]
[1766000794645,2.65e-06,85955.0,85951.0,0.69277]
[1766000794817,2.65e-06,85955.0,85954.0,1.211]
[1766000795581,2.65e-06,85955.0,85954.0,0.69277]